[Event "EYCC Girls U16 2021"]
[Site "Tornelo"]
[Date "2021.10.15"]
[Round "8.2"]
[White "Allahverdiyeva, Ayan"]
[Black "Tsotsonava, Elene"]
[Result "1-0"]
[ECO "B41"]
[WhiteElo "2051"]
[BlackElo "1887"]
[Annotator "ChessBase"]
[PlyCount "67"]
[EventDate "2021.10.15"]
[EventType "swiss"]
[EventCountry "NET"]
[SourceTitle "playchess.com"]
[Source "ChessBase"]
[SourceQuality "1"]
[TimeControl "5400+30"]

1. e4 {[%emt 0:00:30]} c5 {[%emt 0:00:36]} 2. Nf3 {[%emt 0:00:04]} e6 {[%emt 0:00:06]} 3. d4 {[%emt 0:00:04]} cxd4 {[%emt 0:00:05]} 4. Nxd4 {[%emt 0:00:01]} a6 {[%emt 0:00:05]} 5. c4 {[%emt 0:00:43]} Qc7 {[%emt 0:00:12]} 6. Nc3 {[%emt 0:05:20]} Nf6 {[%emt 0:00:13]} 7. a3 {[%emt 0:02:31]} Nxe4 {[%emt 0:00:40]} 8. Nxe4 {[%emt 0:01:43]} Qe5 {[%emt 0:00:08]} 9. Be3 {[%emt 0:12:23]} Qxe4 {[%emt 0:00:10]} 10. Nf3 {[%emt 0:05:48]} Qg6 {[%emt 0:11:04]} 11. h4 {[%emt 0:12:36]} Nc6 {[%emt 0:16:36]} 12. Qd2 {[%emt 0:11:21]} h5 {[%emt 0:06:40]} 13. Bd3 {[%emt 0:06:25]} f5 {[%emt 0:04:53]} 14. Rh3 {[%emt 0:03:38]} d6 {[%emt 0:08:28]} 15. O-O-O {[%emt 0:09:30]} Bd7 {[%emt 0:02:49]} 16. Bg5 {[%emt 0:03:18]} Be7 {[%emt 0:10:48]} 17. Bxe7 {[%emt 0:02:40]} Nxe7 {[%emt 0:07:11]} 18. Bc2 {[%emt 0:01:29]} Nc8 {[%emt 0:01:13]} 19. Ne5 {[%emt 0:03:39]} Qf6 {[%emt 0:00:50]} 20. Nxd7 {[%emt 0:01:15]} Kxd7 {[%emt 0:00:05]} 21. c5 {[%emt 0:01:34]} d5 {[%emt 0:02:29]} 22. Rb3 {[%emt 0:09:20]} Rb8 {[%emt 0:06:12]} 23. Kb1 {[%emt 0:04:38]} Rd8 {[%emt 0:04:03]} 24. Qf4 {[%emt 0:00:48]} Ne7 {[%emt 0:01:40]} 25. Rb6 {[%emt 0:00:03]} Nc6 {[%emt 0:01:44]} 26. Ba4 {[%emt 0:00:07]} e5 {[%emt 0:05:00]} 27. Rxd5+ {[%emt 0:00:09]} Kc7 {[%emt 0:01:49]} 28. Qd2 {[%emt 0:01:39]} Qxh4 {[%emt 0:01:56]} 29. Bxc6 {[%emt 0:00:37]} bxc6 {[%emt 0:01:27]} 30. Rd6 {[%emt 0:00:20]} Qe4+ {[%emt 0:00:55]} 31. Ka1 {[%emt 0:00:05]} Qxg2 {[%emt 0:00:45]} 32. Rxb8 {[%emt 0:00:17]} Rxb8 {[%emt 0:00:39]} 33. Qa5+ {[%emt 0:00:26]} Kb7 {[%emt 0:00:36]} 34. Rd7+ {[%emt 0:00:02]} 1-0

[Event "EYCC Girls U16 2021"]
[Site "Tornelo"]
[Date "2021.10.15"]
[Round "8.3"]
[White "Bashylina, Luisa"]
[Black "Zvereva, Margarita"]
[Result "0-1"]
[ECO "D27"]
[WhiteElo "2127"]
[BlackElo "2013"]
[Annotator "ChessBase"]
[PlyCount "64"]
[EventDate "2021.10.15"]
[EventType "swiss"]
[EventCountry "NET"]
[SourceTitle "playchess.com"]
[Source "ChessBase"]
[SourceQuality "1"]
[TimeControl "5400+30"]

1. d4 {[%emt 0:00:30]} d5 {[%emt 0:00:36]} 2. c4 {[%emt 0:00:04]} dxc4 {[%emt 0:00:06]} 3. e3 {[%emt 0:00:06]} Nf6 {[%emt 0:00:23]} 4. Bxc4 {[%emt 0:00:05]} a6 {[%emt 0:00:19]} 5. Nf3 {[%emt 0:00:06]} e6 {[%emt 0:00:07]} 6. Nc3 {[%emt 0:00:06]} b5 {[%emt 0:01:20]} 7. Be2 {[%emt 0:00:04]} Bb7 {[%emt 0:00:12]} 8. O-O {[%emt 0:00:05]} Nbd7 {[%emt 0:00:10]} 9. a3 {[%emt 0:09:39]} c5 {[%emt 0:02:31]} 10. dxc5 {[%emt 0:00:43]} Bxc5 {[%emt 0:02:05]} 11. b4 {[%emt 0:00:07]} Be7 {[%emt 0:03:56]} 12. Bb2 {[%emt 0:00:28]} O-O {[%emt 0:00:50]} 13. Qb3 {[%emt 0:03:11]} Nd5 {[%emt 0:11:20]} 14. Rfd1 {[%emt 0:03:36]} Bf6 {[%emt 0:06:00]} 15. Nd4 {[%emt 0:03:32]} Nxc3 {[%emt 0:08:20]} 16. Bxc3 {[%emt 0:00:20]} Qe7 {[%emt 0:02:16]} 17. a4 {[%emt 0:10:16]} bxa4 {[%emt 0:08:55]} 18. Rxa4 {[%emt 0:02:58]} Nb6 {[%emt 0:00:57]} 19. Ra5 {[%emt 0:02:04]} Nd5 {[%emt 0:03:11]} 20. Be1 {[%emt 0:00:54]} Qc7 {[%emt 0:07:12]} 21. Bf3 {[%emt 0:16:05]} Rac8 {[%emt 0:06:05]} 22. Be2 {[%emt 0:02:53]} Qb6 {[%emt 0:08:39]} 23. b5 {[%emt 0:05:26]} Bxd4 {[%emt 0:03:47]} 24. Rxd4 {[%emt 0:05:10]} Rc1 {[%emt 0:02:08]} 25. Rd1 {[%emt 0:01:25]} Rfc8 {[%emt 0:04:11]} 26. Bd2 {[%emt 0:14:54]} Nc3 {[%emt 0:07:38]} 27. Bxc3 {[%emt 0:07:44]} R8xc3 {[%emt 0:00:13]} 28. Qa4 {[%emt 0:01:21]} Rxd1+ {[%emt 0:02:59]} 29. Bxd1 {[%emt 0:00:10]} Rc1 {[%emt 0:01:38]} 30. bxa6 {[%emt 0:01:57]} Bc6 {[%emt 0:01:05]} 31. a7 {[%emt 0:07:03]} Qxa5 {[%emt 0:00:30]} 32. a8=Q+ {[%emt 0:00:26]} Qxa8 {[%emt 0:00:10]} 0-1

[Event "EYCC Girls U16 2021"]
[Site "Tornelo"]
[Date "2021.10.15"]
[Round "8.4"]
[White "Mihelic, Vesna"]
[Black "Hakobyan, Astghik"]
[Result "0-1"]
[ECO "B10"]
[WhiteElo "1882"]
[BlackElo "2017"]
[Annotator "ChessBase"]
[PlyCount "150"]
[EventDate "2021.10.15"]
[EventType "swiss"]
[EventCountry "NET"]
[SourceTitle "playchess.com"]
[Source "ChessBase"]
[SourceQuality "1"]
[TimeControl "5400+30"]

1. e4 {[%emt 0:00:30]} c6 {[%emt 0:00:34]} 2. Nf3 {[%emt 0:00:12]} d5 {[%emt 0:00:11]} 3. d3 {[%emt 0:00:08]} Qc7 {[%emt 0:01:13]} 4. c4 {[%emt 0:02:24]} dxe4 {[%emt 0:01:23]} 5. dxe4 {[%emt 0:00:09]} e5 {[%emt 0:00:03]} 6. Be2 {[%emt 0:01:29]} Nf6 {[%emt 0:02:17]} 7. Qc2 {[%emt 0:01:19]} Bc5 {[%emt 0:02:37]} 8. O-O {[%emt 0:02:22]} O-O {[%emt 0:00:09]} 9. Bg5 {[%emt 0:03:15]} Nbd7 {[%emt 0:00:33]} 10. a3 {[%emt 0:03:09]} a5 {[%emt 0:00:14]} 11. Nc3 {[%emt 0:00:34]} h6 {[%emt 0:03:29]} 12. Bh4 {[%emt 0:00:35]} Nh5 {[%emt 0:00:30]} 13. Na4 {[%emt 0:03:26]} Nf4 {[%emt 0:05:36]} 14. Bg3 {[%emt 0:03:05]} b6 {[%emt 0:04:22]} 15. Rad1 {[%emt 0:09:51]} Be7 {[%emt 0:11:33]} 16. Rd2 {[%emt 0:08:04]} Nc5 {[%emt 0:12:44]} 17. Rfd1 {[%emt 0:02:07]} Bg4 {[%emt 0:06:12]} 18. Bxf4 {[%emt 0:08:12]} exf4 {[%emt 0:00:11]} 19. Nxc5 {[%emt 0:04:15]} Bxc5 {[%emt 0:00:21]} 20. h3 {[%emt 0:02:51]} Bxf3 {[%emt 0:04:50]} 21. Bxf3 {[%emt 0:00:36]} Rad8 {[%emt 0:00:07]} 22. Qc3 {[%emt 0:01:26]} Bd6 {[%emt 0:09:19]} 23. Qd3 {[%emt 0:06:24]} Be7 {[%emt 0:01:54]} 24. Qe2 {[%emt 0:00:53]} Qe5 {[%emt 0:01:37]} 25. Rxd8 {[%emt 0:02:16]} Rxd8 {[%emt 0:00:55]} 26. Rxd8+ {[%emt 0:00:34]} Bxd8 {[%emt 0:00:03]} 27. b4 {[%emt 0:03:08]} Bf6 {[%emt 0:04:30]} 28. Qd3 {[%emt 0:09:37]} Qa1+ {[%emt 0:03:11]} 29. Bd1 {[%emt 0:00:40]} Bd4 {[%emt 0:00:36]} 30. bxa5 {[%emt 0:02:13]} bxa5 {[%emt 0:00:28]} 31. a4 {[%emt 0:02:23]} Qb2 {[%emt 0:01:04]} 32. Qc2 {[%emt 0:03:03]} Qb4 {[%emt 0:00:25]} 33. Qe2 {[%emt 0:00:20]} Qc3 {[%emt 0:00:10]} 34. Kf1 {[%emt 0:00:17]} g6 {[%emt 0:00:34]} 35. Qc2 {[%emt 0:00:26]} Qb4 {[%emt 0:01:08]} 36. Qb3 {[%emt 0:02:01]} Qc5 {[%emt 0:00:40]} 37. Qc2 {[%emt 0:00:16]} Kg7 {[%emt 0:00:06]} 38. h4 {[%emt 0:02:05]} Bf6 {[%emt 0:01:48]} 39. h5 {[%emt 0:05:12]} gxh5 {[%emt 0:01:07]} 40. Qd3 {[%emt 0:01:06]} Bd4 {[%emt 0:02:04]} 41. Qe2 {[%emt 0:04:24]} Kg6 {[%emt 0:02:34]} 42. Bc2 {[%emt 0:00:19]} Kf6 {[%emt 0:02:03]} 43. Kg1 {[%emt 0:00:21]} Ke7 {[%emt 0:02:00]} 44. Bd1 {[%emt 0:00:38]} h4 {[%emt 0:01:52]} 45. Qf3 {[%emt 0:02:31]} Qg5 {[%emt 0:00:54]} 46. Kh2 {[%emt 0:00:27]} Kd6 {[%emt 0:00:53]} 47. Kh3 {[%emt 0:00:49]} Ke5 {[%emt 0:01:25]} 48. Bc2 {[%emt 0:00:49]} Kd6 {[%emt 0:03:11]} 49. Bb1 {[%emt 0:00:58]} h5 {[%emt 0:01:11]} 50. Bc2 {[%emt 0:00:31]} Kc5 {[%emt 0:01:23]} 51. Qa3+ {[%emt 0:00:14]} Kb6 {[%emt 0:00:03]} 52. Qb3+ {[%emt 0:00:19]} Kc7 {[%emt 0:00:54]} 53. Qf3 {[%emt 0:00:11]} f6 {[%emt 0:01:36]} 54. Bd3 {[%emt 0:00:18]} Kd6 {[%emt 0:00:11]} 55. Bc2 {[%emt 0:00:09]} Ke5 {[%emt 0:00:34]} 56. Qa3 {[%emt 0:01:27]} Qg4+ {[%emt 0:02:25]} 57. Kh2 {[%emt 0:00:06]} Bxf2 {[%emt 0:00:54]} 58. Qe7+ {[%emt 0:00:14]} Qe6 {[%emt 0:00:34]} 59. Qc7+ {[%emt 0:00:12]} Qd6 {[%emt 0:00:02]} 60. Qxa5+ {[%emt 0:00:10]} Ke6 {[%emt 0:00:01]} 61. Qf5+ {[%emt 0:00:14]} Ke7 {[%emt 0:00:13]} 62. Qh7+ {[%emt 0:00:07]} Kd8 {[%emt 0:00:07]} 63. Kh1 {[%emt 0:01:04]} Qd2 {[%emt 0:01:56]} 64. Qg8+ {[%emt 0:01:33]} Kc7 {[%emt 0:00:11]} 65. Qf7+ {[%emt 0:00:07]} Kb6 {[%emt 0:00:08]} 66. Qxh5 {[%emt 0:01:12]} Qxc2 {[%emt 0:01:08]} 67. a5+ {[%emt 0:00:08]} Ka6 {[%emt 0:00:05]} 68. Qe8 {[%emt 0:00:22]} Qxc4 {[%emt 0:00:58]} 69. Qa8+ {[%emt 0:00:14]} Kb5 {[%emt 0:00:40]} 70. a6 {[%emt 0:00:32]} h3 {[%emt 0:01:15]} 71. Qb7+ {[%emt 0:00:32]} Ka5 {[%emt 0:00:26]} 72. Qb1 {[%emt 0:00:29]} Kxa6 {[%emt 0:01:00]} 73. gxh3 {[%emt 0:00:16]} Qe2 {[%emt 0:00:38]} 74. Qc1 {[%emt 0:01:47]} Qf3+ {[%emt 0:00:10]} 75. Kh2 {[%emt 0:00:11]} Qg3+ {[%emt 0:00:02]} 0-1

[Event "EYCC Girls U16 2021"]
[Site "Tornelo"]
[Date "2021.10.15"]
[Round "8.5"]
[White "Lomaia, Diana"]
[Black "Pipiras, Filipa Fortuna"]
[Result "0-1"]
[ECO "D35"]
[WhiteElo "2111"]
[BlackElo "1995"]
[Annotator "ChessBase"]
[PlyCount "158"]
[EventDate "2021.10.15"]
[EventType "swiss"]
[EventCountry "NET"]
[SourceTitle "playchess.com"]
[Source "ChessBase"]
[SourceQuality "1"]
[TimeControl "5400+30"]

1. d4 {[%emt 0:00:30]} d5 {[%emt 0:02:23]} 2. c4 {[%emt 0:00:05]} e6 {[%emt 0:00:46]} 3. Nc3 {[%emt 0:00:13]} Nf6 {[%emt 0:00:22]} 4. cxd5 {[%emt 0:00:05]} exd5 {[%emt 0:00:17]} 5. Bg5 {[%emt 0:00:04]} c6 {[%emt 0:00:27]} 6. e3 {[%emt 0:00:06]} Be6 {[%emt 0:01:13]} 7. Bd3 {[%emt 0:00:48]} Nbd7 {[%emt 0:00:41]} 8. Nge2 {[%emt 0:01:02]} h6 {[%emt 0:01:29]} 9. Bh4 {[%emt 0:00:32]} g5 {[%emt 0:00:17]} 10. Bg3 {[%emt 0:00:22]} Nh5 {[%emt 0:00:08]} 11. Qc2 {[%emt 0:06:03]} Nxg3 {[%emt 0:03:56]} 12. Nxg3 {[%emt 0:01:37]} h5 {[%emt 0:01:58]} 13. Nge2 {[%emt 0:10:06]} Bd6 {[%emt 0:12:19]} 14. O-O-O {[%emt 0:16:37]} Qc7 {[%emt 0:07:26]} 15. f3 {[%emt 0:04:22]} O-O-O {[%emt 0:04:36]} 16. Kb1 {[%emt 0:00:50]} Kb8 {[%emt 0:07:31]} 17. h3 {[%emt 0:12:45]} g4 {[%emt 0:08:06]} 18. e4 {[%emt 0:07:23]} dxe4 {[%emt 0:05:36]} 19. fxe4 {[%emt 0:00:18]} f6 {[%emt 0:00:57]} 20. Rdf1 {[%emt 0:04:14]} gxh3 {[%emt 0:05:12]} 21. gxh3 {[%emt 0:00:19]} Rhg8 {[%emt 0:00:24]} 22. d5 {[%emt 0:02:19]} cxd5 {[%emt 0:02:19]} 23. exd5 {[%emt 0:00:35]} Bf7 {[%emt 0:01:04]} 24. Be4 {[%emt 0:11:59]} Be5 {[%emt 0:06:06]} 25. Rd1 {[%emt 0:01:50]} a6 {[%emt 0:02:56]} 26. Rhf1 {[%emt 0:08:30]} Nb6 {[%emt 0:05:11]} 27. Rd3 {[%emt 0:02:33]} Nc4 {[%emt 0:01:24]} 28. Qc1 {[%emt 0:00:41]} Nd6 {[%emt 0:02:35]} 29. Bh7 {[%emt 0:03:42]} Rh8 {[%emt 0:02:07]} 30. Be4 {[%emt 0:00:54]} Nxe4 {[%emt 0:00:28]} 31. Nxe4 {[%emt 0:00:03]} Qxc1+ {[%emt 0:01:12]} 32. Kxc1 {[%emt 0:00:54]} Rxd5 {[%emt 0:07:09]} 33. Rxd5 {[%emt 0:00:39]} Bxd5 {[%emt 0:00:12]} 34. Nxf6 {[%emt 0:00:16]} Be6 {[%emt 0:00:47]} 35. h4 {[%emt 0:00:28]} Ka7 {[%emt 0:01:08]} 36. Ne4 {[%emt 0:00:35]} Bc4 {[%emt 0:03:47]} 37. Rf2 {[%emt 0:00:21]} Bxa2 {[%emt 0:00:59]} 38. Rf5 {[%emt 0:00:54]} Bg7 {[%emt 0:00:18]} 39. N2c3 {[%emt 0:01:50]} Be6 {[%emt 0:00:16]} 40. Rf1 {[%emt 0:00:23]} Be5 {[%emt 0:00:58]} 41. Kd2 {[%emt 0:00:44]} Rd8+ {[%emt 0:00:38]} 42. Kc2 {[%emt 0:00:25]} Rd4 {[%emt 0:01:17]} 43. Re1 {[%emt 0:01:29]} Bf5 {[%emt 0:00:32]} 44. Kb3 {[%emt 0:00:03]} Bc7 {[%emt 0:00:57]} 45. Re3 {[%emt 0:01:01]} Bd8 {[%emt 0:00:27]} 46. Ng3 {[%emt 0:00:21]} Bg4 {[%emt 0:00:29]} 47. Re5 {[%emt 0:00:27]} Bc7 {[%emt 0:00:23]} 48. Re3 {[%emt 0:00:15]} Bxg3 {[%emt 0:00:59]} 49. Rxg3 {[%emt 0:00:01]} Be6+ {[%emt 0:00:08]} 50. Kc2 {[%emt 0:00:12]} Rxh4 {[%emt 0:00:11]} 51. Rg2 {[%emt 0:00:28]} Rg4 {[%emt 0:00:38]} 52. Rh2 {[%emt 0:00:03]} h4 {[%emt 0:00:08]} 53. Ne2 {[%emt 0:00:08]} Re4 {[%emt 0:00:58]} 54. Nc3 {[%emt 0:00:13]} Rb4 {[%emt 0:00:30]} 55. Kc1 {[%emt 0:00:32]} h3 {[%emt 0:00:14]} 56. Ne2 {[%emt 0:00:45]} a5 {[%emt 0:00:49]} 57. Kc2 {[%emt 0:00:19]} Bf5+ {[%emt 0:00:15]} 58. Kc3 {[%emt 0:00:11]} Rh4 {[%emt 0:00:31]} 59. Nd4 {[%emt 0:00:13]} Be4 {[%emt 0:00:23]} 60. Nb5+ {[%emt 0:00:41]} Ka6 {[%emt 0:00:26]} 61. Nd6 {[%emt 0:00:12]} Bg2 {[%emt 0:00:34]} 62. Nf5 {[%emt 0:00:11]} Re4 {[%emt 0:00:55]} 63. Kd2 {[%emt 0:00:16]} a4 {[%emt 0:00:50]} 64. Ne3 {[%emt 0:00:16]} Rxe3 {[%emt 0:00:49]} 65. Kxe3 {[%emt 0:00:03]} Kb5 {[%emt 0:00:05]} 66. Kd3 {[%emt 0:00:46]} Kb4 {[%emt 0:00:07]} 67. Kc2 {[%emt 0:00:06]} Kc4 {[%emt 0:00:11]} 68. Kd2 {[%emt 0:00:43]} Kd4 {[%emt 0:00:30]} 69. Kc2 {[%emt 0:01:36]} Ke3 {[%emt 0:00:13]} 70. Kc3 {[%emt 0:00:58]} Kf2 {[%emt 0:00:11]} 71. Kb4 {[%emt 0:00:17]} Kg3 {[%emt 0:00:09]} 72. Rxh3+ {[%emt 0:00:10]} Kxh3 {[%emt 0:00:07]} 73. Kxa4 {[%emt 0:00:21]} Kg4 {[%emt 0:00:07]} 74. b4 {[%emt 0:00:16]} Kf5 {[%emt 0:00:06]} 75. Ka5 {[%emt 0:00:17]} Ke6 {[%emt 0:00:09]} 76. Kb6 {[%emt 0:00:06]} Kd6 {[%emt 0:00:05]} 77. b5 {[%emt 0:00:13]} Bh1 {[%emt 0:00:06]} 78. Ka7 {[%emt 0:00:36]} Kc5 {[%emt 0:00:09]} 79. b6 {[%emt 0:00:04]} Kb5 {[%emt 0:00:05]} 0-1

[Event "EYCC Girls U16 2021"]
[Site "Tornelo"]
[Date "2021.10.15"]
[Round "8.6"]
[White "Shuqja, Klean"]
[Black "Tokmakova, Ulyana"]
[Result "1/2-1/2"]
[ECO "B51"]
[WhiteElo "1877"]
[BlackElo "1977"]
[Annotator "ChessBase"]
[PlyCount "115"]
[EventDate "2021.10.15"]
[EventType "swiss"]
[EventCountry "NET"]
[SourceTitle "playchess.com"]
[Source "ChessBase"]
[SourceQuality "1"]
[TimeControl "5400+30"]

1. e4 {[%emt 0:00:30]} c5 {[%emt 0:00:36]} 2. Nf3 {[%emt 0:00:11]} d6 {[%emt 0:00:07]} 3. Bb5+ {[%emt 0:00:07]} Nd7 {[%emt 0:00:06]} 4. O-O {[%emt 0:00:21]} Ngf6 {[%emt 0:01:34]} 5. d4 {[%emt 0:00:09]} cxd4 {[%emt 0:03:56]} 6. Qxd4 {[%emt 0:01:59]} e5 {[%emt 0:02:17]} 7. Qd3 {[%emt 0:04:30]} Be7 {[%emt 0:01:14]} 8. Bg5 {[%emt 0:01:40]} O-O {[%emt 0:01:24]} 9. Bxd7 {[%emt 0:09:53]} Nxd7 {[%emt 0:06:44]} 10. Bxe7 {[%emt 0:03:10]} Qxe7 {[%emt 0:00:06]} 11. Nc3 {[%emt 0:08:45]} Nc5 {[%emt 0:01:35]} 12. Nd5 {[%emt 0:02:18]} Qd8 {[%emt 0:01:11]} 13. Qc4 {[%emt 0:03:26]} Ne6 {[%emt 0:06:50]} 14. Rfd1 {[%emt 0:05:28]} Bd7 {[%emt 0:10:12]} 15. Ne3 {[%emt 0:09:08]} Qb6 {[%emt 0:06:29]} 16. Qb3 {[%emt 0:06:09]} Qc6 {[%emt 0:07:49]} 17. Nf5 {[%emt 0:05:04]} Nc5 {[%emt 0:06:31]} 18. Ne7+ {[%emt 0:03:42]} Kh8 {[%emt 0:00:04]} 19. Nxc6 {[%emt 0:02:08]} Nxb3 {[%emt 0:00:04]} 20. cxb3 {[%emt 0:10:47]} Bxc6 {[%emt 0:00:09]} 21. Rxd6 {[%emt 0:00:26]} f6 {[%emt 0:00:55]} 22. Re1 {[%emt 0:01:07]} Rfd8 {[%emt 0:01:34]} 23. Rd2 {[%emt 0:05:45]} Rxd2 {[%emt 0:03:15]} 24. Nxd2 {[%emt 0:00:06]} Rd8 {[%emt 0:00:05]} 25. Nf1 {[%emt 0:03:39]} Kg8 {[%emt 0:02:52]} 26. f3 {[%emt 0:00:43]} Kf7 {[%emt 0:00:43]} 27. Kf2 {[%emt 0:01:18]} Ke6 {[%emt 0:02:38]} 28. Ne3 {[%emt 0:02:53]} Bb5 {[%emt 0:06:52]} 29. Nd5 {[%emt 0:02:12]} Bc6 {[%emt 0:00:38]} 30. Nc3 {[%emt 0:00:31]} g6 {[%emt 0:04:34]} 31. Rd1 {[%emt 0:00:36]} Rxd1 {[%emt 0:00:38]} 32. Nxd1 {[%emt 0:00:05]} f5 {[%emt 0:05:04]} 33. exf5+ {[%emt 0:01:34]} gxf5 {[%emt 0:00:14]} 34. Nc3 {[%emt 0:01:40]} Kf6 {[%emt 0:01:57]} 35. Ke3 {[%emt 0:01:19]} Kg5 {[%emt 0:00:31]} 36. b4 {[%emt 0:01:53]} a6 {[%emt 0:01:29]} 37. a4 {[%emt 0:01:26]} h5 {[%emt 0:01:09]} 38. b5 {[%emt 0:01:23]} axb5 {[%emt 0:00:03]} 39. Nxb5 {[%emt 0:01:06]} h4 {[%emt 0:00:48]} 40. g3 {[%emt 0:00:46]} hxg3 {[%emt 0:00:41]} 41. hxg3 {[%emt 0:00:03]} f4+ {[%emt 0:00:14]} 42. gxf4+ {[%emt 0:00:47]} exf4+ {[%emt 0:00:03]} 43. Ke2 {[%emt 0:00:35]} Kh4 {[%emt 0:03:27]} 44. Nd4 {[%emt 0:00:40]} Bxa4 {[%emt 0:00:26]} 45. Kd3 {[%emt 0:00:28]} Kg3 {[%emt 0:03:58]} 46. Ke4 {[%emt 0:00:20]} Bd1 {[%emt 0:00:44]} 47. b3 {[%emt 0:00:30]} b6 {[%emt 0:00:24]} 48. b4 {[%emt 0:00:07]} b5 {[%emt 0:00:16]} 49. Nf5+ {[%emt 0:00:23]} Kf2 {[%emt 0:00:12]} 50. Kxf4 {[%emt 0:00:36]} Bxf3 {[%emt 0:00:05]} 51. Nd4 {[%emt 0:00:23]} Bg2 {[%emt 0:00:55]} 52. Nxb5 {[%emt 0:00:10]} Ke2 {[%emt 0:00:37]} 53. Nd6 {[%emt 0:01:27]} Bc6 {[%emt 0:00:47]} 54. Nc8 {[%emt 0:00:37]} Kd3 {[%emt 0:00:14]} 55. Na7 {[%emt 0:00:28]} Ba4 {[%emt 0:01:03]} 56. Ke5 {[%emt 0:00:30]} Kc4 {[%emt 0:00:05]} 57. b5 {[%emt 0:00:11]} Bxb5 {[%emt 0:00:02]} 58. Nxb5 {[%emt 0:00:05]} 1/2-1/2

[Event "EYCC Girls U16 2021"]
[Site "Tornelo"]
[Date "2021.10.15"]
[Round "8.7"]
[White "Batagan, Ilinca-Petra"]
[Black "Follana Albelda, Lucia"]
[Result "0-1"]
[ECO "B90"]
[WhiteElo "1977"]
[BlackElo "1904"]
[Annotator "ChessBase"]
[PlyCount "128"]
[EventDate "2021.10.15"]
[EventType "swiss"]
[EventCountry "NET"]
[SourceTitle "playchess.com"]
[Source "ChessBase"]
[SourceQuality "1"]
[TimeControl "5400+30"]

1. e4 {[%emt 0:00:30]} c5 {[%emt 0:00:41]} 2. Nf3 {[%emt 0:00:06]} d6 {[%emt 0:00:08]} 3. d4 {[%emt 0:00:04]} cxd4 {[%emt 0:00:08]} 4. Nxd4 {[%emt 0:00:04]} Nf6 {[%emt 0:00:10]} 5. Nc3 {[%emt 0:00:05]} a6 {[%emt 0:00:37]} 6. Be3 {[%emt 0:00:31]} e5 {[%emt 0:00:22]} 7. Nb3 {[%emt 0:00:08]} Be7 {[%emt 0:00:09]} 8. h3 {[%emt 0:00:42]} h5 {[%emt 0:08:02]} 9. f4 {[%emt 0:01:32]} exf4 {[%emt 0:05:37]} 10. Bxf4 {[%emt 0:00:11]} Be6 {[%emt 0:02:58]} 11. Qe2 {[%emt 0:02:30]} Nc6 {[%emt 0:03:08]} 12. O-O-O {[%emt 0:00:59]} Qc7 {[%emt 0:04:32]} 13. g3 {[%emt 0:04:42]} Ne5 {[%emt 0:01:55]} 14. Bg2 {[%emt 0:07:38]} Rc8 {[%emt 0:04:01]} 15. Bxe5 {[%emt 0:02:12]} dxe5 {[%emt 0:00:42]} 16. Nd5 {[%emt 0:00:15]} Nxd5 {[%emt 0:01:43]} 17. exd5 {[%emt 0:00:07]} Bf5 {[%emt 0:00:19]} 18. Be4 {[%emt 0:01:45]} Bxe4 {[%emt 0:01:45]} 19. Qxe4 {[%emt 0:00:50]} O-O {[%emt 0:01:19]} 20. Rhf1 {[%emt 0:03:31]} g6 {[%emt 0:05:00]} 21. g4 {[%emt 0:02:18]} h4 {[%emt 0:05:18]} 22. Kb1 {[%emt 0:02:51]} Rfd8 {[%emt 0:03:00]} 23. Rf3 {[%emt 0:08:29]} Bg5 {[%emt 0:06:01]} 24. Rc3 {[%emt 0:06:56]} Qd6 {[%emt 0:00:32]} 25. Rxc8 {[%emt 0:00:18]} Rxc8 {[%emt 0:00:08]} 26. Nd2 {[%emt 0:03:03]} b5 {[%emt 0:03:06]} 27. Nf3 {[%emt 0:04:46]} Bf6 {[%emt 0:05:19]} 28. b3 {[%emt 0:12:02]} a5 {[%emt 0:02:31]} 29. g5 {[%emt 0:06:27]} Bg7 {[%emt 0:01:42]} 30. Nxh4 {[%emt 0:05:28]} a4 {[%emt 0:00:56]} 31. Nf3 {[%emt 0:00:47]} a3 {[%emt 0:02:24]} 32. Nd2 {[%emt 0:02:34]} Qc5 {[%emt 0:01:05]} 33. c4 {[%emt 0:01:01]} Qb4 {[%emt 0:02:56]} 34. Kc2 {[%emt 0:00:42]} Qc5 {[%emt 0:02:10]} 35. Kd3 {[%emt 0:03:26]} Qf2 {[%emt 0:01:17]} 36. Rf1 {[%emt 0:02:04]} bxc4+ {[%emt 0:03:05]} 37. bxc4 {[%emt 0:00:55]} Qb6 {[%emt 0:00:33]} 38. Nb3 {[%emt 0:00:18]} Qa6 {[%emt 0:01:21]} 39. Rc1 {[%emt 0:01:09]} f5 {[%emt 0:03:59]} 40. gxf6 {[%emt 0:00:54]} Qxf6 {[%emt 0:00:14]} 41. c5 {[%emt 0:01:45]} Qf2 {[%emt 0:01:23]} 42. Qxg6 {[%emt 0:02:35]} Qf3+ {[%emt 0:01:34]} 43. Kc4 {[%emt 0:07:53]} Qf4+ {[%emt 0:05:59]} 44. Kb5 {[%emt 0:00:05]} Rb8+ {[%emt 0:01:29]} 45. Kc6 {[%emt 0:00:12]} Qa4+ {[%emt 0:00:17]} 46. Kc7 {[%emt 0:02:04]} Qa7+ {[%emt 0:00:20]} 47. Kd6 {[%emt 0:00:29]} Rd8+ {[%emt 0:00:28]} 48. Kc6 {[%emt 0:00:08]} Qa6+ {[%emt 0:01:20]} 49. Kc7 {[%emt 0:00:04]} Qxg6 {[%emt 0:04:22]} 50. Kxd8 {[%emt 0:00:04]} Bf6+ {[%emt 0:00:57]} 51. Kc7 {[%emt 0:00:11]} Qf7+ {[%emt 0:00:13]} 52. Kd6 {[%emt 0:00:11]} Qe7+ {[%emt 0:00:46]} 53. Kc6 {[%emt 0:00:04]} Qe8+ {[%emt 0:00:07]} 54. Kb6 {[%emt 0:01:23]} Bd8+ {[%emt 0:00:41]} 55. Ka6 {[%emt 0:00:20]} e4 {[%emt 0:00:54]} 56. c6 {[%emt 0:00:54]} Bc7 {[%emt 0:00:18]} 57. Nc5 {[%emt 0:00:35]} e3 {[%emt 0:02:41]} 58. Ne6 {[%emt 0:00:27]} Qa8+ {[%emt 0:00:23]} 59. Kb5 {[%emt 0:00:04]} Qa5+ {[%emt 0:00:28]} 60. Kc4 {[%emt 0:00:03]} Bd6 {[%emt 0:00:59]} 61. Rg1+ {[%emt 0:01:18]} Kh8 {[%emt 0:00:15]} 62. Rg6 {[%emt 0:01:18]} Qb4+ {[%emt 0:00:14]} 63. Kd3 {[%emt 0:00:07]} Qb1+ {[%emt 0:00:34]} 64. Kxe3 {[%emt 0:00:12]} Qxg6 {[%emt 0:00:14]} 0-1